Cogmind - Beta 13 --- EXPLORER MODE // 2024.04.08 @ 18:05:57 Player: zoefiri Result: Self-destructed Performance ------------- Evolutions (1) 500 Regions Visited (2) 400 Robots Destroyed (13) 65 Value Destroyed (149) 149 Prototype IDs (0) 0 Alien Tech Used (0) 0 Bonus (0) 0 TOTAL SCORE: 1114 Bonus ------- None Cogmind --------- Core Integrity 400/400 Matter 300/300 Energy 125/125 System Corruption 0% Temperature Cool (0) Movement Walking (190) Ox1 Location -9/Materials Parts ------- > --- POWER (1) -------- Light Ion Engine > --- PROPULSION (4) --- Light Treads Aluminum Leg Aluminum Leg > --- UTILITY (3) ------ Large Storage Unit Structural Scanner > --- WEAPON (2) ------- Beam Cannon Beam Cannon > --- INVENTORY (15) --- Hover Unit Medium Storage Unit Core Shielding Beam Cannon Beam Cannon Datajack Peak State ------------ > --- POWER ------------ Light Ion Engine > --- PROPULSION ------- Light Treads Aluminum Leg Aluminum Leg > --- UTILITY ---------- Large Storage Unit Structural Scanner > --- WEAPON ----------- Medium Laser Small Laser > --- INVENTORY -------- Core Shielding [Rating: 8] Favorites ----------- Power Light Ion Engine Engine Light Ion Engine Propulsion Aluminum Leg Treads Light Treads Leg Aluminum Leg Utility Structural Scanner Device Structural Scanner Storage Large Storage Unit Protection Core Shielding Weapon Beam Cannon Energy Gun Medium Laser Energy Cannon Beam Cannon Build | -11 -10 -9 ------- Run | Yrd Mat Mat Slots Evolved 3 | . 1 2 Power . | . . . Propulsion 2 | . 1 1 Utility 1 | . . 1 Weapon . | . . . Parts Attached 17 | 7 10 . Power 2 | 1 1 . Engine 2 | 1 1 . Core . | . . . Reactor . | . . . Propulsion 3 | 2 1 . Treads 1 | . 1 . Leg 2 | 2 . . Wheel . | . . . Hover . | . . . Flight . | . . . Utility 5 | 2 3 . Device 1 | 1 . . Storage 3 | . 3 . Processor . | . . . Hackware . | . . . Protection 1 | 1 . . Artifact . | . . . Weapon 7 | 2 5 . Energy Gun 2 | 2 . . Energy Cannon 5 | . 5 . Ballistic Gun . | . . . Ballistic Cannon . | . . . Launcher . | . . . Special Weapon . | . . . Impact Weapon . | . . . Slashing Weapon . | . . . Piercing Weapon . | . . . Special Melee Weapon . | . . . Unidentified Prototypes . | . . . Parts Lost 1 | . 1 . Power 1 | . 1 . Propulsion . | . . . Utility . | . . . Weapon . | . . . Highest Loss Streak 1 | . 1 . To Critical Strikes . | . . . Average Slot Usage (%) 97 | . 98 80 Engine 10 | . 11 10 Treads 11 | . 11 10 Leg 24 | . 25 20 Device 11 | . 12 10 Storage 11 | . 11 10 Energy Gun 3 | . 3 . Energy Cannon 21 | . 21 20 Naked Turns . | . . . Heaviest Build 30 | 8 30 30 Greatest Support 20 | 20 20 20 Greatest Overweight (x) 1 | . 1 1 Average Overweight (x) . | . . 1 Largest Inventory Capacity 25 | 5 25 15 Average Capacity 13 | 5 14 15 Most Carried 6 | 2 6 6 Average Carried 2 | . 2 6 Final Capacity 15 | 5 15 15 Final Carried 6 | . 6 6 Class Distribution -------------------- 100% | Hacker-Mutant Dominant Class ---------------- Hacker-Mutant | -10/Materials Hacker-Mutant | -9/Materials Resources | -11 -10 -9 ----------- Run | Yrd Mat Mat Matter Collected 370 | 270 100 . Remotely . | . . . Salvage Created 358 | 48 310 . Parts 26 | 1 25 . Haulers Intercepted . | . . . Recyclers Shooed 1 | . 1 . Parts Field Recycled . | . . . Retrieved Matter . | . . . Parts Self-Destructed . | . . . Prevented . | . . . Kills | -11 -10 -9 ------- Run | Yrd Mat Mat Combat Hostiles Destroyed 7 | 1 6 . Guns 3 | 1 2 . Cannons 4 | . 4 . Classes Destroyed 6 | 1 5 . Tunneler 2 | . 2 . Recycler 2 | . 2 . Mechanic 1 | . 1 . Watcher 1 | . 1 . Swarmer 6 | . 6 . Grunt 1 | 1 . . Best Kill Streak 2 | 1 2 . Combat Bots Only 2 | 1 2 . Max Kills in Single Turn 2 | 1 2 . Gunslinging . | . . . Exploded . | . . . Melee . | . . . Uniques/NPCs Destroyed . | . . . Combat | -11 -10 -9 -------- Run | Yrd Mat Mat Hostile Shots Fired 25 | 6 19 . Missed 7 | 2 5 . Damage Taken 184 | 25 159 . Core 48 | 12 36 . Absorbed by Shields . | . . . Ignored by Resistances 122 | 17 105 . Core Remaining (%) 87 | 95 80 . Volleys Fired 26 | 5 21 . Largest 2 | 2 2 . Hottest 120 | 90 120 . Shots Fired 52 | 10 42 . Gun 24 | 10 14 . Cannon 28 | . 28 . Launcher . | . . . Special . | . . . Kinetic . | . . . Thermal 52 | 10 42 . Explosive . | . . . Electromagnetic . | . . . Robot Hit Streak 20 | 7 20 . Robot Miss Streak 5 | 1 5 . Penetration Max . | . . . Secondary Targets . | . . . Shots Hit Robots 31 | 8 23 . Core Hits 14 | 2 12 . Critical Kills . | . . . Critical Parts Destroyed . | . . . Critical Strikes . | . . . Melee Attacks . | . . . Impact . | . . . Slashing . | . . . Piercing . | . . . Sneak Attacks . | . . . Combat Hostiles . | . . . Follow-up Attacks . | . . . Damage Inflicted 455 | 92 363 . Guns 141 | 92 49 . Cannons 314 | . 314 . Explosions . | . . . Melee . | . . . Ramming . | . . . Kinetic . | . . . Thermal 455 | 92 363 . Explosive . | . . . Electromagnetic . | . . . Impact . | . . . Slashing . | . . . Piercing . | . . . Highest Corruption . | . . . Average Corruption . | . . . Corruption Purged . | . . . Corruption Blocked . | . . . Overload Shots . | . . . Overflow Damage . | . . . Projectiles . | . . . Explosions . | . . . Melee . | . . . Knockbacks . | . . . Impact . | . . . Kinetic . | . . . Secondary . | . . . Self-Inflicted Damage . | . . . Shots . | . . . Rammed . | . . . Targets Rammed . | . . . Kicked . | . . . Crushed . | . . . Highest Temperature 202 | 174 202 . Average Temperature 68 | 89 63 . Received Heat Transfer 24 | 24 . . Siege Activations . | . . . Robots Corrupted . | . . . Combat Hostiles . | . . . Parts Fried . | . . . Impact Corruptions . | . . . Robots Melted . | . . . Combat Hostiles . | . . . Parts Melted 2 | 1 1 . Heat Transferred 1062 | 260 802 . Parts Sabotaged . | . . . Parts Stolen . | . . . Parts Stripped . | . . . Power Chain Reactions . | . . . Alert | -11 -10 -9 ------- Run | Yrd Mat Mat Peak Influence 171 | 20 171 . Initial 9 | . 9 . Average 34 | 3 40 . Maximum Alert Level . | . . . Low Security (%) 100 | 100 100 100 Level 1 . | . . . Level 2 . | . . . Level 3 . | . . . Level 4 . | . . . Level 5 . | . . . High Security . | . . . Max Security . | . . . Squads Dispatched . | . . . Investigation . | . . . Extermination . | . . . Reinforcement . | . . . Assault . | . . . Garrison . | . . . Intercept . | . . . Searches Triggered . | . . . Construction Impeded . | . . . Haulers Reinforced . | . . . Active Scanning Responses . | . . . Cargo Convoy Interrupts . | . . . Stealth | -11 -10 -9 --------- Run | Yrd Mat Mat Distress Signals 1 | . 1 . Communications Jammed . | . . . Distress Signals . | . . . Times Spotted 11 | 1 10 . Peak Tracking Total 3 | 1 3 . Tactical Retreats 1 | . 1 . Traps | -11 -10 -9 ------- Run | Yrd Mat Mat Traps Triggered 2 | . 2 . Indirectly . | . . . Trap Hack Attempts . | . . . Triggered . | . . . Disarmed . | . . . Reprogrammed . | . . . Reused . | . . . Traps Extracted . | . . . Installed . | . . . Triggered . | . . . Machines | -11 -10 -9 ---------- Run | Yrd Mat Mat Machines Disabled . | . . . Max in Single Turn . | . . . Machines Repaired . | . . . Machines Dismantled . | . . . Machines Sabotaged . | . . . Overloaded Fab Kills . | . . . Hacking | -11 -10 -9 --------- Run | Yrd Mat Mat Machines Accessed . | . . . Terminals . | . . . Fabricators . | . . . Repair Stations . | . . . Recycling Units . | . . . Scanalyzers . | . . . Garrison Access . | . . . Total Hacks . | . . . Successful . | . . . Failed . | . . . Catastrophic . | . . . Database Lockouts . | . . . Manual . | . . . Terminals . | . . . Fabricators . | . . . Repair Stations . | . . . Recycling Units . | . . . Scanalyzers . | . . . Garrison Access . | . . . Terminal Hacks . | . . . Fabricator Hacks . | . . . Repair Station Hacks . | . . . Recycling Unit Hacks . | . . . Scanalyzer . | . . . Garrison Access Hacks . | . . . Unauthorized Hacks . | . . . Terminals . | . . . Fabricators . | . . . Repair Stations . | . . . Recycling Units . | . . . Scanalyzers . | . . . Garrison Access . | . . . Data Cores Recovered . | . . . Used . | . . . Hacking Detections . | . . . Full Trace Events . | . . . Feedback Events . | . . . Feedback Blocked . | . . . Robot Schematics Acquired . | . . . Robots Built . | . . . Authchips . | . . . Time . | . . . Total Robot Build Rating . | . . . Part Schematics Acquired . | . . . Parts Built . | . . . Authchips . | . . . Time . | . . . Total Part Build Rating . | . . . Parts Repaired . | . . . Time . | . . . Parts Recycled . | . . . Recycled Matter . | . . . Retrieved Matter . | . . . Retrieved Components . | . . . Parts Scanalyzed . | . . . Part Schematics Acquired . | . . . Parts Damaged . | . . . Bothacking | -11 -10 -9 ------------ Run | Yrd Mat Mat Used RIF Installer . | . . . Robots Hacked . | . . . Non-combat . | . . . Combat . | . . . Robot Hacks Applied . | . . . Relay Couplers Released . | . . . Fabnet Peak Effective % . | . . . Robots Rewired . | . . . Allies Hacked . | . . . Hacks Repelled . | . . . Allies | -11 -10 -9 -------- Run | Yrd Mat Mat Total Allies . | . . . Largest Group . | . . . Highest-Rated Group . | . . . Highest-Rated Ally . | . . . Total Orders . | . . . Ally Attacks . | . . . Total Damage . | . . . Kills . | . . . Allies Corrupted . | . . . Allies Melted . | . . . Intel | -11 -10 -9 ------- Run | Yrd Mat Mat Robot Analysis Total . | . . . Derelict Logs Recovered . | . . . Drone Launches . | . . . Drone Recoveries . | . . . Exploration | -11 -10 -9 ------------- Run | Yrd Mat Mat Turns Passed 1276 | 122 1098 56 Spaces Moved 663 | 94 540 29 Core 27 | 27 . . Treads . | . . . Legs 636 | 67 540 29 Wheels . | . . . Hover . | . . . Flight . | . . . Fastest Speed 50 | 50 120 190 Average Speed 175 | 99 187 190 Slowest Speed 190 | 120 190 190 Overloaded Moves . | . . . Propulsion Burnouts . | . . . Robots Hopped . | . . . Cave-ins Triggered . | . . . Exploration Rate (%) 25 | 8 62 6 Regions Visited 2 Branch Regions . Pre-discovered Areas . | . . . Known Exits Taken 2 | 1 1 . Unknown Exits Taken . | . . . Scrap Searched . | . . . Spaces Dug . | . . . Terrain Destroyed . | . . . Melee . | . . . Projectile . | . . . AOE . | . . . Terrain Rammed . | . . . Walls Destroyed . | . . . Machines Disabled . | . . . Actions | -11 -10 -9 --------- Run | Yrd Mat Mat Total 721 | 111 581 29 Wait . | . . . Move 661 | 93 539 29 Hop . | . . . Pick Up 11 | 5 6 . Fast Attach 9 | 3 6 . Attach 5 | 4 1 . Detach . | . . . Swap 3 | . 3 . Drop 6 | 1 5 . Fire 26 | 5 21 . Melee . | . . . Ram . | . . . Kick . | . . . Crush . | . . . Escape Stasis . | . . . Rewire . | . . . Trap . | . . . Miscellaneous . | . . . Route ------- -11/Scrapyard -10/Materials (discovered 2 exits: *Mat x2) -9/Materials History --------- Turn | Location | Event 2 | -11/Scrapyard | Met Revision 17 82 | -11/Scrapyard | Identified exit to Materials 82 | -11/Scrapyard | Discovered exit to Materials (range 8) 123 | -11/Scrapyard | Entered Materials 123 | -10/Materials | Evolved 1 slot: Propulsion x1 310 | -10/Materials | Build established: Hacker-Mutant 427 | -10/Materials | Identified exit to Materials 427 | -10/Materials | Discovered exit to Materials (range 15) 870 | -10/Materials | Discovered exit to Materials (range 16) 1221 | -10/Materials | Entered another Materials area 1221 | -9/Materials | Evolved 2 slots: Propulsion x1, Utility x1 1277 | -9/Materials | Self-destructed Last Messages --------------- R-06 Scavenger inserts Flight Unit into recycling unit. Triggered Blade Trap. Massive razor-sharp blades shoot up from within the floor. Beam Cannon severed. Acquired Beam Cannon. EXIT=FOUND: MATERIALS Dropped Lrg. Storage Unit. Acquired Huge Storage Unit. Dropped Huge Storage Unit. Acquired Lrg. Storage Unit. T-07 Excavator is excavating. Acquired 30 matter. Connecting with Repair Station... Acquired Hover Unit. Acquired 20 matter. PARAMETERS=PROPULSION+1,UTILITY+1 LOCATION=MATERIALS GOAL=ESCAPE Map ----- +----------------------------------------------------+ | ?????????????????????????????????????? | | ?????????????????????????????????????? | | ?????????????????????????????????????? | | ?????????????????????????????????????? | | ?????????????????????????????????????? | | ?????????????????????????????????????? | | ?????????????????????????????????????? | | ?????????????????????????????????????? | | ?????????????????????????????????????? | | ?????????????????????????????????????? | | ?????????????????????????????????????? | | ?????????????????????????????????????? | | ?????????????????????????????????????? | | ?????????????????????????????????????? | | ???? ##########??????????????????? | | ????###############??????????????????? | | ????## # ??????????????????? | | ????## # ??????????????????? | | ????## """ """ # ??????????????????? | | ????## """ """ # ??????????????????? | | ????## """ """ # ??????????????????? | | ????## # ??????????????????? | | ????## ##########??????????? | | ###########+###############??????????? | | ########## ^ ????????? | | ## # @ ????????? | | ## """ # "" ????????? | | ## """ + "" """ ##????????? | | ## """ # "T """ ##????????? | | ## # "" """ ##????????? | | ########## "" ##????????? | | ###### ????????? | | ????## """ ?????????????? | | ????## """ ????????????? | | ????#####+####### """ ? ???????????? | | ????## ##### ?????????????? | | ????????????????? ????????????? | | ???????????????????""" ???????????? | | ?????????????????????? ""?????????? | | ??????????????????????? ##?????????? | | ????????????????????????? ##?????????? | | ????????????????????????? ##?????????? | | ?????????????????????????????????????? | | ?????????????????????????????????????? | | ?????????????????????????????????????? | | ?????????????????????????????????????? | | ?????????????????????????????????????? | | ?????????????????????????????????????? | | ?????????????????????????????????????? | | ?????????????????????????????????????? | +----------------------------------------------------+ Best States ------------- Heat Dissipation 28 Energy Generation 10 Energy Capacity 125 Matter Stores 300 Matter Capacity 300 Sight Range 16 Terrain Scan Density 10 Resistance: KI 35 Resistance: TH 35 Resistance: EX 35 Resistance: EM 35 Resistance: I 35 Resistance: S 35 Resistance: P 35 Core Shielding 20 Evasion (%) 55 Offensive Hacking 20 Item Schematics ----------------- None Robot Schematics ------------------ None Fabricated ------------ Nothing Alien Tech Used ----------------- None Achievements -------------- None Challenges ------------ None Game ------ Seed GravityBeamDetonator Manual? 0 Play Time 00:07:49 Cumulative 2.6 hours Start 2024.04.08 @ 17:58:52 End 2024.04.08 @ 18:05:57 Sessions 1 Manual Loads 0 Difficulty Explorer Special Mode None Game No. 3 Rogue 0 Adventurer 0 Explorer 3 Win Type - Total 0 Types 0/0/0/0/0/0/0/0/0 Lore% 8 Gallery% 13 Achievement% 12 Wizard Run 0 Options --------- Layout 1 ASCII 0 Keyboard 0 Movement Arrows Keybinds 0 Fullscreen 0 Font 28/SmallcapsGlow Map View 50x43 Zoom Use 0% Tactical HUD 0 Map Filters NONE Filters NONE Steam 1 RUN: 1ed0a00b-afdc-4455-81bd-0415f6fd04a4